Cogmind - Beta 17 @@@ ROGUE MODE // 2026.07.27 @ 22:06:08 Player: opdo Result: Destroyed by 9I-CRZ(R) with Subdweller Beam Cannon Performance ------------- Evolutions (0) 0 Regions Visited (3) 600 Robots Destroyed (22) 110 Value Destroyed (565) 565 Prototype IDs (0) 0 Alien Tech Used (0) 0 Bonus (0) 0 TOTAL SCORE: 1275 Bonus ------- None Cogmind --------- Core Integrity 0/250 Matter 300/300 Energy 250/250 System Corruption 0% Temperature Cool (9) Movement Rolling (115) Ox1 Location -10/Subcaves Parts ------- > --- POWER (1) -------- Ion Engine > --- PROPULSION (2) --- Compact Wheel > --- UTILITY (2) ------ Large Storage Unit Weapon Shielding > --- WEAPON (2) ------- Ripper > --- INVENTORY (15) --- Subdweller Power Source Aluminum Leg Makeshift Leg Subdweller Monowheel Subdweller Monowheel Subdweller Optics Seismic Detector Scrap Shield Subdweller Laser Assault Rifle Assault Rifle Subdweller Machine Gun Subdweller Machine Gun Light Cannon Peak State ------------ > --- POWER ------------ Ion Engine > --- PROPULSION ------- Light Treads Compact Wheel > --- UTILITY ---------- Large Storage Unit Seismic Detector > --- WEAPON ----------- Assault Rifle Ripper > --- INVENTORY -------- Ion Engine Aluminum Leg Makeshift Leg Subdweller Monowheel Subdweller Monowheel Targeting Computer Weapon Shielding Scrap Shield Subdweller Laser Assault Rifle Assault Rifle Assault Rifle Subdweller Machine Gun Light Cannon [Rating: 12] Favorites ----------- Power Ion Engine Engine Ion Engine Propulsion Aluminum Leg Treads Light Treads Leg Aluminum Leg Wheel Compact Wheel Utility Power Shielding Device Seismic Detector Storage Large Storage Unit Protection Power Shielding Weapon Small Laser Energy Gun Small Laser Ballistic Gun Assault Rifle Slashing Weapon Ripper Build | -11 -10 -10 -10 ------- Run | Yrd Mat Min Sub Slots Evolved . | . . . . Power . | . . . . Propulsion . | . . . . Utility . | . . . . Weapon . | . . . . Parts Attached 20 | 7 7 3 3 Power 4 | 1 . 2 1 Engine 4 | 1 . 2 1 Core . | . . . . Reactor . | . . . . Propulsion 4 | 2 2 . . Treads 1 | . 1 . . Leg 2 | 2 . . . Wheel 1 | . 1 . . Hover . | . . . . Flight . | . . . . Utility 6 | 2 3 . 1 Device 1 | 1 . . . Storage 3 | 1 2 . . Processor . | . . . . Hackware . | . . . . Protection 2 | . 1 . 1 Artifact . | . . . . Weapon 6 | 2 2 1 1 Energy Gun 3 | 2 1 . . Energy Cannon . | . . . . Ballistic Gun 2 | . 1 1 . Ballistic Cannon . | . . . . Launcher . | . . . . Special Weapon . | . . . . Impact Weapon . | . . . . Slashing Weapon 1 | . . . 1 Piercing Weapon . | . . . . Special Melee Weapon . | . . . . Unidentified Prototypes . | . . . . Parts Lost 5 | . 2 . 3 Power 1 | . . . 1 Propulsion 2 | . 1 . 1 Utility . | . . . . Weapon 2 | . 1 . 1 Highest Loss Streak 2 | . 1 . 2 To Critical Strikes . | . . . . Average Backups 11 | 2 10 15 14 Power . | . . 1 . Propulsion 3 | 1 2 3 3 Utility 3 | . 3 5 3 Weapon 4 | . 4 6 6 Tool/Special . | . . . . Unused Backups 24 | . 3 1 20 Power 2 | . . 1 1 Propulsion 5 | . . . 5 Utility 5 | . . . 5 Weapon 12 | . 3 . 9 Tool/Special . | . . . . Average Slot Usage (%) 99 | . 99 100 99 Engine 13 | . 14 14 13 Treads 6 | . . 14 14 Leg 14 | . 26 . . Wheel 6 | . 1 14 14 Device 3 | . 2 . 7 Storage 14 | . 14 14 14 Protection 10 | . 11 14 6 Energy Gun 15 | . 27 2 . Ballistic Gun 10 | . . 25 20 Slashing Weapon 2 | . . . 7 Peak Build Rating 12 | 7 9 9 12 Average Rating 8 | 5 8 8 10 On Entrance 6 | . 7 9 8 Avg Prop Armor Cover (%) 12 | . 9 12 13 Naked Turns . | . . . . Heaviest Build 31 | 13 31 31 31 Greatest Support 20 | 20 20 16 16 Greatest Overweight (x) 3 | 3 1 1 1 Average Overweight (x) . | . . 1 1 Largest Inventory Capacity 15 | 8 15 15 15 Average Capacity 12 | 7 11 15 15 Most Carried 15 | 4 15 15 15 Average Carried 11 | 2 10 15 14 Final Capacity 15 | 8 15 15 15 Final Carried 15 | 4 15 15 15 Class Distribution -------------------- 100% | Mutant Dominant Class ---------------- Mutant | -10/Materials Mutant | -10/Mines Mutant | -10/Subcaves Resources | -11 -10 -10 -10 ----------- Run | Yrd Mat Min Sub Matter Collected 549 | 270 97 43 139 Remotely . | . . . . Salvage Created 877 | 166 452 . 259 Parts 47 | 8 25 . 14 Haulers Intercepted 1 | . 1 . . Recyclers Shooed 2 | 1 1 . . Parts Field Recycled . | . . . . Retrieved Matter . | . . . . Parts Self-Destructed 3 | . . . 3 Prevented . | . . . . Parts Restored . | . . . . Kills | -11 -10 -10 -10 ------- Run | Yrd Mat Min Sub Combat Hostiles Destroyed 15 | . 10 . 5 Melee 3 | . . . 3 Guns 12 | . 10 . 2 Classes Destroyed 7 | 2 4 . 1 Tunneler 3 | 3 . . . Hauler 1 | . 1 . . Recycler 1 | 1 . . . Watcher 2 | . 2 . . Swarmer 3 | . 3 . . Grunt 7 | . 7 . . Subdweller 5 | . . . 5 Best Kill Streak 5 | 4 5 . 1 Combat Bots Only 4 | . 4 . 1 Max Kills in Single Turn 2 | 1 2 . 1 Gunslinging 1 | . 1 . . Exploded . | . . . . Melee 1 | . . . 1 Uniques/NPCs Destroyed . | . . . . Combat | -11 -10 -10 -10 -------- Run | Yrd Mat Min Sub Hostile Shots Fired 108 | . 66 . 42 Missed 25 | . 13 . 12 Hits 83 | . 53 . 30 Projectile 83 | . 53 . 30 Damage Taken 1262 | . 549 10 703 Core 253 | . 85 . 168 Absorbed by Shields . | . . . . Redirected to Shielding 57 | . 12 . 45 Core Remaining (%) 100 | 100 . . . Volleys Fired 66 | 8 43 1 14 Largest 2 | 2 2 2 2 Hottest 105 | 80 105 85 40 Shots Fired 131 | 16 85 2 28 Gun 131 | 16 85 2 28 Cannon . | . . . . Launcher . | . . . . Special . | . . . . Kinetic 30 | . 1 1 28 Thermal 101 | 16 84 1 . Explosive . | . . . . Electromagnetic . | . . . . Robot Hit Streak 15 | 4 15 3 12 Robot Miss Streak 3 | 3 3 1 2 Penetration Max . | . . . . Secondary Targets 1 | . 1 . . Max Gunslinging Chain 1 | . 1 . . Shots Hit Robots 100 | 8 58 1 33 Core Hits 39 | 5 26 . 8 Critical Kills . | . . . . Critical Parts Destroyed . | . . . . Critical Strikes . | . . . . Melee Attacks 19 | . . . 19 Impact . | . . . . Slashing 19 | . . . 19 Piercing . | . . . . Sneak Attacks . | . . . . Combat Hostiles . | . . . . Follow-up Attacks . | . . . . Damage Inflicted 1389 | 86 680 39 584 Guns 1049 | 86 676 14 273 Cannons . | . . . . Explosions . | . . . . Melee 311 | . . . 311 Ramming 29 | . 4 25 . Kinetic 286 | . 13 . 273 Thermal 763 | 86 663 14 . Explosive . | . . . . Electromagnetic . | . . . . Impact . | . . . . Slashing 311 | . . . 311 Piercing . | . . . . Highest Corruption . | . . . . Average Corruption . | . . . . Corruption Purged . | . . . . Corruption Blocked . | . . . . Overload Shots . | . . . . Overflow Damage . | . . . . Projectiles . | . . . . Explosions . | . . . . Melee . | . . . . Knockbacks . | . . . . Impact . | . . . . Kinetic . | . . . . Secondary . | . . . . Self-Inflicted Damage 10 | . . 10 . Shots . | . . . . Rammed 2 | . . 2 . Targets Rammed 3 | . 1 2 . Kicked 1 | . 1 . . Crushed . | . . . . Highest Temperature 420 | 108 420 24 . Average Temperature 125 | 47 140 13 . Received Heat Transfer 291 | . 195 . 96 Effects 6 | . 6 . . Shutdowns 1 | . 1 . . Interference 3 | . 3 . . Matter Decay 1 | . 1 . . Short Circuit 1 | . 1 . . Siege Activations . | . . . . Martial Activations . | . . . . Shielding Activations . | . . . . Robots Disrupted . | . . . . Combat Hostiles . | . . . . Robots Corrupted . | . . . . Combat Hostiles . | . . . . Parts Fried . | . . . . Impact Corruptions . | . . . . Robots Melted . | . . . . Combat Hostiles . | . . . . Parts Melted 6 | 1 5 . . Heat Transferred 1759 | 200 1522 37 . Parts Sabotaged . | . . . . Parts Stolen . | . . . . Parts Stripped . | . . . . Power Chain Reactions . | . . . . Alert | -11 -10 -10 -10 ------- Run | Yrd Mat Min Sub Maximum Alert Level . | . . . . Low Security (%) 100 | 100 100 100 . Level 1 . | . . . . Level 2 . | . . . . Level 3 . | . . . . Level 4 . | . . . . Level 5 . | . . . . High Security . | . . . . Max Security . | . . . . Peak Influence 105 | 10 105 17 . Initial 17 | . . 17 . Average 29 | 1 39 2 . Influence Increases 334 | 20 314 . . Destroy 0b10 Robot/C 200 | . 200 . . Destroy 0b10 Robot/NC 35 | 20 15 . . Destroy Leader 46 | . 46 . . Successful Hack 23 | . 23 . . Disable Machine 15 | . 15 . . Lose Combat Pursuer 15 | . 15 . . Influence Decreases 334 | 20 269 45 . Entered New Map 28 | . . 28 . Time Decay 286 | 20 249 17 . Lost Part 20 | . 20 . . Squads Dispatched 1 | . 1 . . Investigation . | . . . . Extermination . | . . . . Reinforcement 1 | . 1 . . Assault . | . . . . Garrison . | . . . . Intercept . | . . . . Searches Triggered . | . . . . Construction Impeded . | . . . . Haulers Reinforced . | . . . . Active Scanning Responses . | . . . . Cargo Convoy Interrupts . | . . . . Stealth | -11 -10 -10 -10 --------- Run | Yrd Mat Min Sub Distress Signals . | . . . . Communications Jammed . | . . . . Distress Signals . | . . . . Times Spotted 23 | . 17 . 6 Peak Tracking Total 6 | . 6 . 1 Tactical Retreats 1 | . 1 . . Traps | -11 -10 -10 -10 ------- Run | Yrd Mat Min Sub Traps Triggered . | . . . . Indirectly . | . . . . Trap Hack Attempts . | . . . . Triggered . | . . . . Disarmed . | . . . . Reprogrammed . | . . . . Reused . | . . . . Traps Extracted . | . . . . Installed . | . . . . Triggered . | . . . . Machines | -11 -10 -10 -10 ---------- Run | Yrd Mat Min Sub Machines Disabled 1 | . 1 . . Max in Single Turn 1 | . 1 . . Machines Repaired . | . . . . Machines Dismantled . | . . . . Machines Sabotaged . | . . . . Overloaded Fab Kills . | . . . . Hacking | -11 -10 -10 -10 --------- Run | Yrd Mat Min Sub Machines Accessed 6 | . 6 . . Terminals 6 | . 6 . . Fabricators . | . . . . Repair Stations . | . . . . Recycling Units . | . . . . Scanalyzers . | . . . . Garrison Access . | . . . . Total Hacks 24 | . 24 . . Successful 11 | . 11 . . Failed 13 | . 13 . . Catastrophic 1 | . 1 . . Database Lockouts . | . . . . Manual 17 | . 17 . . Terminals 24 | . 24 . . Fabricators . | . . . . Repair Stations . | . . . . Recycling Units . | . . . . Scanalyzers . | . . . . Garrison Access . | . . . . Terminal Hacks 4 | . 4 . . Robot Analysis 1 | . 1 . . Terminal Index 1 | . 1 . . Alert Level 1 | . 1 . . Locate Traps 1 | . 1 . . Fabricator Hacks . | . . . . Repair Station Hacks . | . . . . Recycling Unit Hacks . | . . . . Scanalyzer . | . . . . Garrison Access Hacks . | . . . . Unauthorized Hacks 7 | . 7 . . Terminals 7 | . 7 . . Botnet 2 | . 2 . . Skim 5 | . 5 . . Fabricators . | . . . . Repair Stations . | . . . . Recycling Units . | . . . . Scanalyzers . | . . . . Garrison Access . | . . . . Data Cores Recovered . | . . . . Used . | . . . . Hacking Detections 6 | . 6 . . Full Trace Events . | . . . . Feedback Events . | . . . . Feedback Blocked . | . . . . Robot Schematics Acquired . | . . . . Robots Built . | . . . . Authchips . | . . . . Time . | . . . . Total Robot Build Rating . | . . . . Part Schematics Acquired . | . . . . Parts Built . | . . . . Authchips . | . . . . Time . | . . . . Total Part Build Rating . | . . . . Part Studies Acquired . | . . . . Parts Repaired . | . . . . Time . | . . . . Parts Recycled . | . . . . Recycled Matter . | . . . . Retrieved Matter . | . . . . Retrieved Components . | . . . . Parts Scanalyzed . | . . . . Part Schematics Acquired . | . . . . Parts Damaged . | . . . . Bothacking | -11 -10 -10 -10 ------------ Run | Yrd Mat Min Sub Used RIF Installer . | . . . . Robots Hacked . | . . . . Non-combat . | . . . . Combat . | . . . . Robot Hacks Applied . | . . . . Relay Couplers Released . | . . . . Fabnet Peak Effective % . | . . . . Robots Rewired . | . . . . Allies Hacked . | . . . . Hacks Repelled . | . . . . Allies | -11 -10 -10 -10 -------- Run | Yrd Mat Min Sub Total Allies . | . . . . Largest Group . | . . . . Highest-Rated Group . | . . . . Highest-Rated Ally . | . . . . Total Orders . | . . . . Ally Attacks . | . . . . Total Damage . | . . . . Kills . | . . . . Allies Corrupted . | . . . . Allies Melted . | . . . . Intel | -11 -10 -10 -10 ------- Run | Yrd Mat Min Sub Active Infowar (turns) 395 | 16 148 . 231 Seismic 395 | 16 148 . 231 Robot Analysis Total 1 | . 1 . . Derelict Logs Recovered . | . . . . Drone Launches . | . . . . Drone Recoveries . | . . . . Exploration | -11 -10 -10 -10 ------------- Run | Yrd Mat Min Sub Turns Passed 1566 | 121 806 178 461 Spaces Moved 976 | 69 476 144 287 Core 12 | 12 . . . Treads . | . . . . Legs 490 | 57 433 . . Wheels 474 | . 43 144 287 Hover . | . . . . Flight . | . . . . Fastest Speed 50 | 50 115 115 115 Average Speed 123 | 120 131 115 115 Slowest Speed 200 | 200 190 115 115 Overloaded Moves . | . . . . Propulsion Burnouts . | . . . . Robots Hopped . | . . . . Potential Cave-ins . | . . . . Cave-ins Triggered . | . . . . Exploration Rate (%) 34 | 4 86 25 23 Regions Visited 3 Branch Regions 2 Pre-discovered Areas 1 | . 1 . . Known Exits Taken 1 | . . 1 . Unknown Exits Taken 2 | 1 1 . . Scrap Searched 9 | . . 2 7 Spaces Dug . | . . . . Terrain Destroyed . | . . . . Melee . | . . . . Projectile . | . . . . AOE . | . . . . Terrain Rammed . | . . . . Walls Destroyed . | . . . . Machines Disabled . | . . . . Actions | -11 -10 -10 -10 --------- Run | Yrd Mat Min Sub Total 1182 | 87 571 157 367 Wait 41 | . 22 . 19 Move 973 | 68 475 143 287 Hop . | . . . . Pick Up 35 | 4 17 3 11 Fast Attach 7 | 7 . . . Attach 3 | . 2 . 1 Detach . | . . . . Swap 13 | . 5 3 5 Drop 22 | . 6 5 11 Fire 66 | 8 43 1 14 Melee 19 | . . . 19 Ram 1 | . . 1 . Kick 1 | . 1 . . Crush 1 | . . 1 . Escape Stasis . | . . . . Rewire . | . . . . Trap . | . . . . Miscellaneous . | . . . . Route ------- -11/Scrapyard -10/Materials (discovered 5 exits: *Mat x3 / [*Min] / Sub) -10/Mines (discovered 3 exits: Mat x2 / *Sub) -10/Subcaves (discovered 3 exits: *Mat x2 / Rec) History --------- Turn | Location | Event 17 | -11/Scrapyard | Discovered new exit (range 15) 122 | -11/Scrapyard | Entered Materials 242 | -10/Materials | Discovered new exit (range 9) 310 | -10/Materials | Build established: Mutant 463 | -10/Materials | Discovered new exit (range 16) 517 | -10/Materials | Learned location of 2 exits from Subcaves 546 | -10/Materials | Identified exit to Materials 546 | -10/Materials | Identified exit to Subcaves 557 | -10/Materials | Discovered new exit (range 8) 566 | -10/Materials | Loaded intel: 1 repair station location 578 | -10/Materials | Learned location of Recycling (-7) 580 | -10/Materials | Learned location of 2 exits from Subcaves 590 | -10/Materials | Learned location of 2 exits from Mines 611 | -10/Materials | Learned location of 1 exit from Recycling 928 | -10/Materials | Entered Mines 972 | -10/Mines | Found DCF Scrap (13 items) 1030 | -10/Mines | Assembled infested the area 1035 | -10/Mines | Assisted by a Guerilla fighting off Assembled 1064 | -10/Mines | Met a Derelict bent on vengeance 1106 | -10/Mines | Entered Subcaves 1107 | -10/Subcaves | Identified exit to Materials 1108 | -10/Subcaves | Identified exit to Recycling 1165 | -10/Subcaves | Disturbed a concealed Subdweller 1449 | -10/Subcaves | Core integrity fell below 50% 1494 | -10/Subcaves | Shifting Twisted Machinery released Riot Gun 1559 | -10/Subcaves | Core integrity fell below 20% 1567 | -10/Subcaves | Destroyed by 9I-CRZ(R) with Subdweller Beam Cannon Last Messages --------------- 01231_ Dropped Power Shielding. 01231_ Acquired Sub. Monowheel. 01336_ Q4-9YA(R) destroyed. 01339_ Acquired 20 matter. 01341_ Dropped Sub. Monowheel. 01341_ Acquired Sub. Monowheel. 01345_ Dropped Targeting Computer. 01345_ Acquired Sub. Optics. 01439_ Ion Engine destroyed. 01455_ 7E-K5Z(R) destroyed. 01457_ Acquired 15 matter. 01461_ Acquired Sub. Machine Gun. 01467_ Dropped Assault Rifle. 01468_ Acquired Sub. Power Source. Riot Gun falls loose from the Twisted Machinery. 01553_ H5-KMK(R) destroyed. 01554_ Assault Rifle destroyed. 01562_ 9I-CRZ(R) affixes Scrap Shield Fragment to Scrap Shield. 01567_ Lgt. Treads destroyed. Map ----- +----------------------------------------------------+ | ?????????????????????????????????????????????????? | | ?????????????????????????????????????????????????? | | ?????????????????????????????????????????????????? | | ?????????????????????????????????????????????????? | | ?????????????????????????????????????????????????? | | ?????????????????????????????????????????????????? | | ?????????????????????????????????????????????????? | | ?????????????????????????????????????????????????? | | ?????????????????????????????????????????????????? | | ?????????????????????????????????????????????????? | | ?????????????????????????????????????????????????? | | ?????????????????????????????????????????????????? | | ????????????????? ???????????????????????????????? | | ???????????????? #?## #?????????????????????????? | | ??????????????? ## ???????????????????????? | | ???????????????? ????????????????????????? | | ????????????????? ????????????????????????? | | ?????????????????# ?????????????????????????? | | ???????????????### ?????????????????????????? | | ???????????????# #?????????????????????????? | | ???????????????# #####?????????????????????? | | ???????????????# ##????????????????????? | | ??????????????## #????????????????????? | | ??????????????# #????????????????????? | | ??????????????# R ## ##????????????????? | | ??????????????# *@= #????????????????? | | ?????????????## ## #????????????????? | | ?????????????# #??? #????????????????? | | ?????????????# ##???? #????????????????? | | ?????????????## #??????????????????????? | | ??????????????# ## ##??????????????????????? | | ?????????????## #####???????????????????????? | | ?????????????# #???????????????????????????? | | ?????????????# ##??????????????????????????? | | ?????????????## #??????????????????????????? | | ??????????????## ##?????????????????????????? | | ???????????????# #?????????????????????????? | | ??????????????## ##?????????????????????????? | | ??????????????# ##?????????????????????????? | | ??????????????# ####??????????????????????? | | ??????????????# ########???????????????? | | ??????????????##### ## ##??????????????? | | ??????????????????## #??????????????? | | ???????????????????# #???????####???? | | ??????????????????# ## #???????# ?### | | ?????????????????# " ### #???????# ### | | ???????????????# "" #?# ##??????# ## | | ??????????????# """ ### "#??????# | | ??????????????# " ""## "###????# | | ?????????????# "" ##" ##""#???## | +----------------------------------------------------+ Best States ------------- Heat Dissipation 25 Energy Generation 10 Energy Capacity 250 Matter Stores 300 Matter Capacity 300 Sight Range 16 Terrain Scan Density 10 Power Shielding 33 Weapon Shielding 33 Evasion (%) 55 Item Schematics ----------------- None Robot Schematics ------------------ None Fabricated ------------ Nothing Repaired ---------- Nothing Studied --------- None Alien Tech Used ----------------- None Achievements -------------- None Challenges ------------ None Game ------ Seed TimingNanofilamentsSpoofer Manual? 0 Play Time 00:10:03 Cumulative 158.8 hours Start 2026.07.27 @ 21:55:39 End 2026.07.27 @ 22:06:08 Sessions 1 Manual Loads 0 Difficulty Rogue Special Mode None Game No. 399 Rogue 397 Adventurer 2 Explorer 0 Win Type - Total 3 Types 3/0/0/0/0/0/0/0/0/0 Lore% 81 Gallery% 61 Achievement% 47 Wizard Run 0 Options --------- Layout 2 ASCII 0 Keyboard 0 Movement Numpad Keybinds 0 Fullscreen 2 Font 24/Smallcaps Map View 50x44 Zoom Use 0% Tactical HUD 1 Map Filters NONE Filters NONE Steam 1 RUN: 28a2a3dd-19c5-40c2-921c-16fdb2cee411